[Event "*** Titled Tuesday Blitz"]
[Site "Chess.com"]
[Date "2021.04.20"]
[Round "7"]
[White "SilviusTiberius"]
[Black "ShahMatKanal"]
[Result "1-0"]
[WhiteElo "2582"]
[BlackElo "2408"]
[TimeControl "180+1"]
[EndTime "11:17:45 PDT"]
[Termination "SilviusTiberius won by resignation"]

1. e4 {[%clk 0:03:00.9]} 1... c5 {[%clk 0:02:58.9]} 2. Nf3 {[%clk 0:03:00.9]}
2... Nc6 {[%clk 0:02:59.2]} 3. d4 {[%clk 0:03:01.4]} 3... cxd4 {[%clk
0:03:00.1]} 4. Nxd4 {[%clk 0:03:01.6]} 4... e5 {[%clk 0:03:00.5]} 5. Nb5 {[%clk
0:03:01.3]} 5... a6 {[%clk 0:03:01.1]} 6. Nd6+ {[%clk 0:03:01]} 6... Bxd6 {[%clk
0:03:01.6]} 7. Qxd6 {[%clk 0:03:01.5]} 7... Qf6 {[%clk 0:03:02.5]} 8. Qd1 {[%clk
0:03:01]} 8... Qg6 {[%clk 0:03:01.3]} 9. Nc3 {[%clk 0:03:01.2]} 9... Nf6 {[%clk
0:03:01.1]} 10. Qd6 {[%clk 0:03:01.6]} 10... b5 {[%clk 0:02:43.9]} 11. Be3
{[%clk 0:02:56.5]} 11... Ng4 {[%clk 0:02:19.6]} 12. Qxg6 {[%clk 0:02:52.5]}
12... hxg6 {[%clk 0:02:20.5]} 13. Bc5 {[%clk 0:02:41.1]} 13... f5 {[%clk
0:02:00.4]} 14. O-O-O {[%clk 0:02:23.3]} 14... Rxh2 {[%clk 0:01:42.5]} 15. Rxh2
{[%clk 0:02:21]} 15... Nxh2 {[%clk 0:01:43.4]} 16. Be2 {[%clk 0:02:21.8]} 16...
Ng4 {[%clk 0:01:40.5]} 17. Nd5 {[%clk 0:02:20.2]} 17... Rb8 {[%clk 0:01:23.3]}
18. a4 {[%clk 0:02:08.7]} 18... Kf7 {[%clk 0:01:09.8]} 19. axb5 {[%clk
0:01:52.7]} 19... axb5 {[%clk 0:01:10.7]} 20. Nc7 {[%clk 0:01:42.9]} 20... Nf6
{[%clk 0:01:01.5]} 21. f3 {[%clk 0:01:27.1]} 21... Nd4 {[%clk 0:00:55.8]} 22.
Bxd4 {[%clk 0:01:24.4]} 22... exd4 {[%clk 0:00:55.8]} 23. e5 {[%clk 0:01:22.5]}
23... Ne8 {[%clk 0:00:42.5]} 24. Nxb5 {[%clk 0:01:20.7]} 24... Ba6 {[%clk
0:00:22.3]} 25. Nd6+ {[%clk 0:01:09.2]} 25... Nxd6 {[%clk 0:00:22.5]} 26. Bxa6
{[%clk 0:01:09.9]} 26... Rb6 {[%clk 0:00:16.8]} 27. Bf1 {[%clk 0:01:05.3]} 27...
Nb5 {[%clk 0:00:13]} 28. Bc4+ {[%clk 0:01:03.6]} 28... Ke7 {[%clk 0:00:12.5]}
29. Rh1 {[%clk 0:01:00.1]} 29... d6 {[%clk 0:00:06.8]} 30. Rh7 {[%clk
0:00:46.9]} 30... dxe5 {[%clk 0:00:06.3]} 31. Rxg7+ {[%clk 0:00:47.2]} 31... Kf6
{[%clk 0:00:06.8]} 32. Rd7 {[%clk 0:00:38.3]} 32... Nd6 {[%clk 0:00:06.5]} 33.
Bd3 {[%clk 0:00:36.4]} 33... e4 {[%clk 0:00:06.5]} 34. Be2 {[%clk 0:00:30.7]}
34... Ke6 {[%clk 0:00:06.4]} 35. Rd8 {[%clk 0:00:30.5]} 35... Ke7 {[%clk
0:00:06.4]} 36. Rg8 {[%clk 0:00:30]} 36... Kf7 {[%clk 0:00:06.8]} 37. Ra8 {[%clk
0:00:30.4]} 37... Rc6 {[%clk 0:00:05.2]} 38. Kd2 {[%clk 0:00:26.8]} 38... Kf6
{[%clk 0:00:05.5]} 39. Ra4 {[%clk 0:00:23.9]} 39... d3 {[%clk 0:00:03.1]} 40.
cxd3 {[%clk 0:00:22.4]} 40... exd3 {[%clk 0:00:04]} 41. Bxd3 {[%clk 0:00:22.1]}
41... Nf7 {[%clk 0:00:04.2]} 42. f4 {[%clk 0:00:20.4]} 42... Nd6 {[%clk
0:00:04.2]} 43. Rd4 {[%clk 0:00:19.2]} 43... Rb6 {[%clk 0:00:04.1]} 44. b4
{[%clk 0:00:19]} 44... g5 {[%clk 0:00:04.3]} 45. g3 {[%clk 0:00:18.3]} 45... g4
{[%clk 0:00:04.1]} 46. Kc3 {[%clk 0:00:16.9]} 46... Nf7 {[%clk 0:00:03.3]} 47.
b5 {[%clk 0:00:16.2]} 47... Re6 {[%clk 0:00:03.4]} 48. Rd5 {[%clk 0:00:16]}
48... Re3 {[%clk 0:00:03.6]} 49. Rxf5+ {[%clk 0:00:15.9]} 49... Ke6 {[%clk
0:00:03.7]} 50. Rc5 {[%clk 0:00:13.7]} 50... Rxg3 {[%clk 0:00:03.3]} 51. Kd4
{[%clk 0:00:13.2]} 51... Rf3 {[%clk 0:00:02.7]} 52. Bc4+ {[%clk 0:00:12.2]}
52... Kf6 {[%clk 0:00:02.7]} 53. Rc6+ {[%clk 0:00:12.5]} 53... Kg7 {[%clk
0:00:02.3]} 54. Rc7 {[%clk 0:00:11.7]} 54... Rxf4+ {[%clk 0:00:02.6]} 55. Ke3
{[%clk 0:00:12.2]} 55... Rf6 {[%clk 0:00:02.6]} 56. Rxf7+ {[%clk 0:00:10.7]}
56... Rxf7 {[%clk 0:00:02.7]} 57. Bxf7 {[%clk 0:00:11.4]} 57... Kxf7 {[%clk
0:00:03.6]} 58. b6 {[%clk 0:00:12.1]} 58... Ke6 {[%clk 0:00:03.8]} 59. b7 {[%clk
0:00:12.5]} 59... Kd7 {[%clk 0:00:04.4]} 60. b8=Q {[%clk 0:00:12.5]} 60... g3
{[%clk 0:00:03.5]} 61. Qxg3 {[%clk 0:00:12.5]} 1-0

[Event "*** Titled Tuesday Blitz"]
[Site "Chess.com"]
[Date "2021.04.20"]
[Round "7"]
[White "Vanina1989"]
[Black "731291"]
[Result "1-0"]
[WhiteElo "2796"]
[BlackElo "2686"]
[TimeControl "180+1"]
[EndTime "11:17:46 PDT"]
[Termination "Vanina1989 won by resignation"]

1. d4 {[%clk 0:03:00.9]} 1... Nf6 {[%clk 0:02:59.5]} 2. c4 {[%clk 0:03:01]} 2...
e6 {[%clk 0:03:00]} 3. Nf3 {[%clk 0:03:01]} 3... b6 {[%clk 0:02:59.8]} 4. Bf4
{[%clk 0:03:00.2]} 4... Bb7 {[%clk 0:03:00]} 5. e3 {[%clk 0:03:00.6]} 5... Bb4+
{[%clk 0:02:58.1]} 6. Nfd2 {[%clk 0:03:00.5]} 6... Be7 {[%clk 0:02:57.1]} 7. Nc3
{[%clk 0:03:00.4]} 7... O-O {[%clk 0:02:57.6]} 8. Bd3 {[%clk 0:03:00]} 8... d5
{[%clk 0:02:57]} 9. O-O {[%clk 0:02:59.6]} 9... c5 {[%clk 0:02:56.5]} 10. dxc5
{[%clk 0:02:54.5]} 10... Bxc5 {[%clk 0:02:56.4]} 11. cxd5 {[%clk 0:02:53.7]}
11... Nxd5 {[%clk 0:02:56]} 12. Nxd5 {[%clk 0:02:52.2]} 12... Bxd5 {[%clk
0:02:56.9]} 13. Qh5 {[%clk 0:02:45.4]} 13... g6 {[%clk 0:02:56.5]} 14. Qh6
{[%clk 0:02:13.3]} 14... Nd7 {[%clk 0:02:55.4]} 15. Ne4 {[%clk 0:02:10.1]} 15...
Bxe4 {[%clk 0:02:36.7]} 16. Bxe4 {[%clk 0:02:10]} 16... Rc8 {[%clk 0:02:37.3]}
17. Bb7 {[%clk 0:02:05.9]} 17... Qf6 {[%clk 0:02:27.1]} 18. Bxc8 {[%clk
0:02:03.1]} 18... Rxc8 {[%clk 0:02:28]} 19. Rad1 {[%clk 0:02:02.6]} 19... Nf8
{[%clk 0:02:27.2]} 20. Qg5 {[%clk 0:01:55.8]} 20... Be7 {[%clk 0:02:13.2]} 21.
Qxf6 {[%clk 0:01:50.5]} 21... Bxf6 {[%clk 0:02:14.1]} 22. Rd2 {[%clk 0:01:50.6]}
22... h5 {[%clk 0:02:13.1]} 23. Bd6 {[%clk 0:01:46.3]} 23... Nh7 {[%clk
0:02:07.4]} 24. Rfd1 {[%clk 0:01:45.5]} 24... Ng5 {[%clk 0:02:04.4]} 25. f3
{[%clk 0:01:45.9]} 25... e5 {[%clk 0:02:04.7]} 26. Rd5 {[%clk 0:01:40.1]} 26...
Re8 {[%clk 0:01:48.5]} 27. b3 {[%clk 0:01:30.5]} 27... h4 {[%clk 0:01:43.1]} 28.
h3 {[%clk 0:01:29.4]} 28... Kg7 {[%clk 0:01:39.3]} 29. Kf2 {[%clk 0:01:29.2]}
29... Rc8 {[%clk 0:01:35.2]} 30. R1d2 {[%clk 0:01:29.1]} 30... e4 {[%clk
0:01:26.2]} 31. f4 {[%clk 0:01:29]} 31... Ne6 {[%clk 0:01:26.7]} 32. Be5 {[%clk
0:01:27.7]} 32... Nc5 {[%clk 0:01:26.2]} 33. Ke2 {[%clk 0:01:20.4]} 33... Nd3
{[%clk 0:01:20.8]} 34. Bxf6+ {[%clk 0:01:11.1]} 34... Kxf6 {[%clk 0:01:21.7]}
35. Rd4 {[%clk 0:01:09.6]} 35... Kf5 {[%clk 0:01:16.6]} 36. Rc4 {[%clk
0:00:57.4]} 36... Rxc4 {[%clk 0:00:52.5]} 37. bxc4 {[%clk 0:00:56.1]} 37... Ke6
{[%clk 0:00:52.6]} 38. Rc2 {[%clk 0:00:50.9]} 38... Kd6 {[%clk 0:00:50.7]} 39.
Kd2 {[%clk 0:00:51.2]} 39... Kc5 {[%clk 0:00:48.3]} 40. Kc3 {[%clk 0:00:51.6]}
40... a6 {[%clk 0:00:42.7]} 41. a4 {[%clk 0:00:47.1]} 41... Nb4 {[%clk
0:00:32.6]} 42. Rd2 {[%clk 0:00:45.7]} 42... Nd3 {[%clk 0:00:33.2]} 43. Rd1
{[%clk 0:00:45]} 43... f6 {[%clk 0:00:26]} 44. Rd2 {[%clk 0:00:44.7]} 44... f5
{[%clk 0:00:24.3]} 45. Rd1 {[%clk 0:00:44.3]} 45... a5 {[%clk 0:00:19.5]} 46.
Rd2 {[%clk 0:00:43.9]} 46... Kd6 {[%clk 0:00:18.5]} 47. Rd1 {[%clk 0:00:41.8]}
47... Kc5 {[%clk 0:00:17.9]} 48. Rb1 {[%clk 0:00:41.8]} 48... Kc6 {[%clk
0:00:17]} 49. Kd4 {[%clk 0:00:40.6]} 49... Nc5 {[%clk 0:00:17.1]} 50. Ke5 {[%clk
0:00:32]} 50... Nxa4 {[%clk 0:00:17.2]} 51. Kf6 {[%clk 0:00:32.4]} 51... Kc5
{[%clk 0:00:14.4]} 52. Kxg6 {[%clk 0:00:32.6]} 52... Kxc4 {[%clk 0:00:14.2]} 53.
Kxf5 {[%clk 0:00:32.8]} 53... b5 {[%clk 0:00:14.8]} 54. Ke5 {[%clk 0:00:20.8]}
54... Nc3 {[%clk 0:00:15.2]} 55. Rc1 {[%clk 0:00:17.4]} 55... b4 {[%clk
0:00:15.1]} 56. f5 {[%clk 0:00:17.9]} 56... b3 {[%clk 0:00:15.6]} 57. f6 {[%clk
0:00:18.5]} 57... b2 {[%clk 0:00:15.9]} 58. Rf1 {[%clk 0:00:18.6]} 58... a4
{[%clk 0:00:03.8]} 59. f7 {[%clk 0:00:18.9]} 59... a3 {[%clk 0:00:04.3]} 60.
f8=Q {[%clk 0:00:19.1]} 60... a2 {[%clk 0:00:04.8]} 61. Qc8+ {[%clk 0:00:19.2]}
61... Kb3 {[%clk 0:00:04.8]} 62. Qb7+ {[%clk 0:00:19]} 62... Kc2 {[%clk
0:00:04.4]} 63. Rf2+ {[%clk 0:00:19.5]} 63... Kd3 {[%clk 0:00:04.2]} 64. Qxb2
{[%clk 0:00:18.7]} 1-0

[Event "*** Titled Tuesday Blitz"]
[Site "Chess.com"]
[Date "2021.04.20"]
[Round "7"]
[White "Ghost_Pepper"]
[Black "Fraler15"]
[Result "1-0"]
[WhiteElo "2373"]
[BlackElo "2205"]
[TimeControl "180+1"]
[EndTime "11:17:47 PDT"]
[Termination "Ghost_Pepper won on time"]

1. e4 {[%clk 0:03:00.9]} 1... c5 {[%clk 0:02:56]} 2. Nf3 {[%clk 0:02:58.1]} 2...
e6 {[%clk 0:02:56.1]} 3. g3 {[%clk 0:02:56.3]} 3... d5 {[%clk 0:02:53.5]} 4.
exd5 {[%clk 0:02:55.7]} 4... exd5 {[%clk 0:02:54.4]} 5. d4 {[%clk 0:02:56.3]}
5... Nf6 {[%clk 0:02:49.5]} 6. Bg2 {[%clk 0:02:56.7]} 6... Nc6 {[%clk
0:02:48.2]} 7. O-O {[%clk 0:02:56.2]} 7... cxd4 {[%clk 0:02:43.4]} 8. Nxd4
{[%clk 0:02:57.1]} 8... Be7 {[%clk 0:02:42.4]} 9. b3 {[%clk 0:02:19.7]} 9... O-O
{[%clk 0:02:24.5]} 10. Bb2 {[%clk 0:02:17.4]} 10... Bg4 {[%clk 0:02:20.8]} 11.
f3 {[%clk 0:02:05.1]} 11... Nxd4 {[%clk 0:02:15.5]} 12. fxg4 {[%clk 0:01:47.4]}
12... Nc6 {[%clk 0:02:09.9]} 13. Nc3 {[%clk 0:01:44.1]} 13... d4 {[%clk
0:02:02.7]} 14. Ne4 {[%clk 0:01:37.5]} 14... Nd5 {[%clk 0:01:41.6]} 15. a3
{[%clk 0:01:23.3]} 15... Ne3 {[%clk 0:01:40.1]} 16. Qd3 {[%clk 0:01:05.9]} 16...
Nxf1 {[%clk 0:01:38.5]} 17. Rxf1 {[%clk 0:01:06.8]} 17... Rc8 {[%clk 0:01:36.9]}
18. h4 {[%clk 0:00:50.8]} 18... Ne5 {[%clk 0:01:25]} 19. Qe2 {[%clk 0:00:50]}
19... d3 {[%clk 0:01:15.6]} 20. cxd3 {[%clk 0:00:42.3]} 20... Qxd3 {[%clk
0:01:16.5]} 21. Qf2 {[%clk 0:00:36.2]} 21... Nxg4 {[%clk 0:01:13.9]} 22. Qf5
{[%clk 0:00:33.7]} 22... Qe3+ {[%clk 0:00:20.5]} 23. Kh1 {[%clk 0:00:31.9]}
23... Nh6 {[%clk 0:00:16.7]} 24. Qe5 {[%clk 0:00:31.2]} 24... f6 {[%clk
0:00:05.2]} 25. Nxf6+ {[%clk 0:00:30.9]} 25... Bxf6 {[%clk 0:00:04.7]} 26. Qxe3
{[%clk 0:00:30.5]} 26... Bxb2 {[%clk 0:00:04.6]} 27. Bd5+ {[%clk 0:00:29.3]}
27... Kh8 {[%clk 0:00:04.6]} 28. Rxf8+ {[%clk 0:00:28.8]} 28... Rxf8 {[%clk
0:00:05.5]} 29. Qe7 {[%clk 0:00:26.9]} 29... Rc8 {[%clk 0:00:02.6]} 30. Qxb7
{[%clk 0:00:24.1]} 30... Rd8 {[%clk 0:00:02.4]} 31. Qe7 {[%clk 0:00:18.6]} 31...
Rxd5 {[%clk 0:00:02.1]} 32. Qe8+ {[%clk 0:00:15.1]} 32... Ng8 {[%clk 0:00:02.5]}
33. Kg2 {[%clk 0:00:14.2]} 33... Bf6 {[%clk 0:00:02.1]} 34. b4 {[%clk
0:00:14.5]} 34... Rd8 {[%clk 0:00:02.5]} 35. Qe6 {[%clk 0:00:14.2]} 35... Ra8
{[%clk 0:00:02.5]} 36. Qc6 {[%clk 0:00:13.6]} 36... Rd8 {[%clk 0:00:02.6]} 37.
Qb7 {[%clk 0:00:14.1]} 37... Rd2+ {[%clk 0:00:02.7]} 38. Kh3 {[%clk 0:00:14.3]}
38... Rb2 {[%clk 0:00:02.2]} 39. Qxa7 {[%clk 0:00:14.1]} 39... Be5 {[%clk
0:00:01.7]} 40. Qe3 {[%clk 0:00:13.4]} 40... Bf6 {[%clk 0:00:02.1]} 41. Qf3
{[%clk 0:00:13]} 41... h6 {[%clk 0:00:03]} 42. g4 {[%clk 0:00:13.2]} 42... Rc2
{[%clk 0:00:03.4]} 43. Qf5 {[%clk 0:00:11.4]} 43... Rc3+ {[%clk 0:00:04.3]} 44.
Kg2 {[%clk 0:00:11.5]} 44... Rxa3 {[%clk 0:00:05]} 45. g5 {[%clk 0:00:12]} 45...
hxg5 {[%clk 0:00:04.8]} 46. hxg5 {[%clk 0:00:12.9]} 46... Bc3 {[%clk 0:00:04]}
47. Qh3+ {[%clk 0:00:12.5]} 47... Nh6 {[%clk 0:00:02.8]} 48. gxh6 {[%clk
0:00:12.5]} 48... Ra2+ {[%clk 0:00:03]} 49. Kf3 {[%clk 0:00:12.4]} 49... Ra3
{[%clk 0:00:03.2]} 50. Qc8+ {[%clk 0:00:12.1]} 50... Kh7 {[%clk 0:00:03.2]} 51.
Qf5+ {[%clk 0:00:10.5]} 51... Kg8 {[%clk 0:00:03.4]} 52. h7+ {[%clk 0:00:10.4]}
52... Kh8 {[%clk 0:00:03]} 53. Qf8+ {[%clk 0:00:09.1]} 53... Kxh7 {[%clk
0:00:03.2]} 54. Kg4 {[%clk 0:00:08.6]} 54... Bf6 {[%clk 0:00:02.8]} 55. b5
{[%clk 0:00:07.9]} 55... Rc3 {[%clk 0:00:03.3]} 56. Qb8 {[%clk 0:00:06.8]} 56...
Bd4 {[%clk 0:00:02.3]} 57. Qh2+ {[%clk 0:00:06]} 57... Kg6 {[%clk 0:00:02]} 58.
Qh5+ {[%clk 0:00:06]} 58... Kf6 {[%clk 0:00:02.1]} 59. Qf5+ {[%clk 0:00:06.7]}
59... Ke7 {[%clk 0:00:02.6]} 60. Qe4+ {[%clk 0:00:07.3]} 60... Kf6 {[%clk
0:00:01.6]} 61. Qxd4+ {[%clk 0:00:07.8]} 1-0

[Event "*** Titled Tuesday Blitz"]
[Site "Chess.com"]
[Date "2021.04.20"]
[Round "7"]
[White "DanielTitichoca"]
[Black "alexgo05"]
[Result "1-0"]
[WhiteElo "2305"]
[BlackElo "2465"]
[TimeControl "180+1"]
[EndTime "11:17:48 PDT"]
[Termination "DanielTitichoca won by checkmate"]

1. c4 {[%clk 0:02:59.7]} 1... Nf6 {[%clk 0:02:59.9]} 2. Nc3 {[%clk 0:03:00.6]}
2... d6 {[%clk 0:03:00.2]} 3. Nf3 {[%clk 0:03:00.3]} 3... e5 {[%clk 0:03:00.7]}
4. g3 {[%clk 0:02:58.7]} 4... Be7 {[%clk 0:03:00.3]} 5. Bg2 {[%clk 0:02:56]}
5... O-O {[%clk 0:03:00.3]} 6. O-O {[%clk 0:02:56.4]} 6... Nbd7 {[%clk
0:02:59.8]} 7. d4 {[%clk 0:02:56.7]} 7... c6 {[%clk 0:02:59.7]} 8. b3 {[%clk
0:02:52.6]} 8... Re8 {[%clk 0:02:57.3]} 9. Bb2 {[%clk 0:02:52.7]} 9... Bf8
{[%clk 0:02:56.5]} 10. e4 {[%clk 0:02:47.8]} 10... a6 {[%clk 0:02:52.9]} 11. Re1
{[%clk 0:02:40.9]} 11... Qc7 {[%clk 0:02:49.9]} 12. Rc1 {[%clk 0:02:39.8]} 12...
Rb8 {[%clk 0:02:46.4]} 13. d5 {[%clk 0:02:29]} 13... c5 {[%clk 0:02:44.6]} 14.
Bh3 {[%clk 0:02:08]} 14... b5 {[%clk 0:02:38.1]} 15. Nd2 {[%clk 0:02:01.8]}
15... Nb6 {[%clk 0:01:48.4]} 16. Bxc8 {[%clk 0:01:48.7]} 16... Nxc8 {[%clk
0:01:49.3]} 17. Qe2 {[%clk 0:01:45.6]} 17... Qd7 {[%clk 0:01:40.8]} 18. f3
{[%clk 0:01:23.2]} 18... g6 {[%clk 0:01:28.1]} 19. Nd1 {[%clk 0:01:20.4]} 19...
Qe7 {[%clk 0:01:13.7]} 20. Ne3 {[%clk 0:01:19.2]} 20... Bh6 {[%clk 0:01:07.9]}
21. Kh1 {[%clk 0:01:18.6]} 21... Nh5 {[%clk 0:01:01.8]} 22. Ng4 {[%clk
0:01:06.7]} 22... Bg7 {[%clk 0:00:57.4]} 23. Ne3 {[%clk 0:01:05.2]} 23... Qd7
{[%clk 0:00:51.5]} 24. Rcd1 {[%clk 0:01:03.9]} 24... f5 {[%clk 0:00:50.3]} 25.
Qf2 {[%clk 0:00:40.8]} 25... Ne7 {[%clk 0:00:36.3]} 26. g4 {[%clk 0:00:39.2]}
26... fxg4 {[%clk 0:00:34.9]} 27. Nxg4 {[%clk 0:00:33.6]} 27... Rf8 {[%clk
0:00:35]} 28. Qh4 {[%clk 0:00:30]} 28... Rf4 {[%clk 0:00:29.8]} 29. Rg1 {[%clk
0:00:26.4]} 29... Rbf8 {[%clk 0:00:28.4]} 30. Rdf1 {[%clk 0:00:25.9]} 30... Nc8
{[%clk 0:00:25.5]} 31. Bc1 {[%clk 0:00:24.5]} 31... Nb6 {[%clk 0:00:21.4]} 32.
Qh3 {[%clk 0:00:18.4]} 32... Kh8 {[%clk 0:00:20.9]} 33. Nb1 {[%clk 0:00:14.2]}
33... R4f7 {[%clk 0:00:20.6]} 34. Nd2 {[%clk 0:00:13.4]} 34... Nf4 {[%clk
0:00:19.8]} 35. Qh4 {[%clk 0:00:11.3]} 35... Qd8 {[%clk 0:00:19.6]} 36. Qg3
{[%clk 0:00:09.9]} 36... Qe7 {[%clk 0:00:17.1]} 37. h4 {[%clk 0:00:08.6]} 37...
h5 {[%clk 0:00:16.8]} 38. Nf2 {[%clk 0:00:08]} 38... Bf6 {[%clk 0:00:16.8]} 39.
Nh3 {[%clk 0:00:08]} 39... Bxh4 {[%clk 0:00:16.9]} 40. Qh2 {[%clk 0:00:08.3]}
40... Kh7 {[%clk 0:00:12.7]} 41. Nxf4 {[%clk 0:00:08]} 41... Rxf4 {[%clk
0:00:13.6]} 42. Qg2 {[%clk 0:00:05.8]} 42... Rg8 {[%clk 0:00:08]} 43. Nb1 {[%clk
0:00:05.7]} 43... Rf7 {[%clk 0:00:07.7]} 44. cxb5 {[%clk 0:00:05.6]} 44... axb5
{[%clk 0:00:07.7]} 45. Nc3 {[%clk 0:00:05.9]} 45... b4 {[%clk 0:00:08.1]} 46.
Ne2 {[%clk 0:00:06.3]} 46... Bf6 {[%clk 0:00:07.2]} 47. f4 {[%clk 0:00:06.1]}
47... exf4 {[%clk 0:00:07.6]} 48. Nxf4 {[%clk 0:00:06]} 48... Bd4 {[%clk
0:00:08.2]} 49. Ne6 {[%clk 0:00:05.4]} 49... Bxg1 {[%clk 0:00:06.8]} 50. Rxg1
{[%clk 0:00:05.7]} 50... Nd7 {[%clk 0:00:05.1]} 51. Bg5 {[%clk 0:00:05.4]} 51...
Qe8 {[%clk 0:00:04.9]} 52. Qh3 {[%clk 0:00:04]} 52... Ne5 {[%clk 0:00:04.9]} 53.
Bh4 {[%clk 0:00:03.9]} 53... Nf3 {[%clk 0:00:04.8]} 54. Rf1 {[%clk 0:00:03.6]}
54... Nxh4 {[%clk 0:00:04.6]} 55. Ng5+ {[%clk 0:00:03.1]} 55... Kg7 {[%clk
0:00:02.9]} 56. Rxf7+ {[%clk 0:00:03.4]} 56... Kh8 {[%clk 0:00:01.9]} 57. Rh7#
{[%clk 0:00:02.7]} 1-0

[Event "*** Titled Tuesday Blitz"]
[Site "Chess.com"]
[Date "2021.04.20"]
[Round "7"]
[White "The_filthy"]
[Black "cukin84"]
[Result "1-0"]
[WhiteElo "2425"]
[BlackElo "2134"]
[TimeControl "180+1"]
[EndTime "11:17:54 PDT"]
[Termination "The_filthy won on time"]

1. e4 {[%clk 0:03:00.9]} 1... c6 {[%clk 0:02:59.4]} 2. Nf3 {[%clk 0:03:00.5]}
2... d5 {[%clk 0:02:58]} 3. Nc3 {[%clk 0:03:00.7]} 3... Nf6 {[%clk 0:02:57.2]}
4. e5 {[%clk 0:03:00.6]} 4... Ne4 {[%clk 0:02:55.6]} 5. h3 {[%clk 0:03:01.1]}
5... Bf5 {[%clk 0:02:50.8]} 6. d4 {[%clk 0:02:40.2]} 6... Nxc3 {[%clk
0:02:49.4]} 7. bxc3 {[%clk 0:02:39.9]} 7... e6 {[%clk 0:02:49.4]} 8. Bd3 {[%clk
0:02:39.2]} 8... Bxd3 {[%clk 0:02:48.7]} 9. cxd3 {[%clk 0:02:34.1]} 9... Be7
{[%clk 0:02:44.2]} 10. O-O {[%clk 0:02:34.1]} 10... O-O {[%clk 0:02:42.9]} 11.
Nh2 {[%clk 0:02:34.1]} 11... Nd7 {[%clk 0:02:40.3]} 12. Qg4 {[%clk 0:02:33.6]}
12... f5 {[%clk 0:02:37.1]} 13. exf6 {[%clk 0:02:21.4]} 13... Rxf6 {[%clk
0:02:36.2]} 14. Re1 {[%clk 0:02:17.3]} 14... Rg6 {[%clk 0:02:35.7]} 15. Qf3
{[%clk 0:02:16.3]} 15... Qf8 {[%clk 0:02:25.6]} 16. Qe2 {[%clk 0:02:10.5]} 16...
Qf7 {[%clk 0:02:21.5]} 17. Nf3 {[%clk 0:02:06.9]} 17... Rf8 {[%clk 0:02:15.5]}
18. Kh1 {[%clk 0:02:07.1]} 18... c5 {[%clk 0:01:57.9]} 19. dxc5 {[%clk
0:01:57.9]} 19... Bxc5 {[%clk 0:01:57.5]} 20. d4 {[%clk 0:01:57]} 20... Bd6
{[%clk 0:01:56.7]} 21. Be3 {[%clk 0:01:41.3]} 21... h6 {[%clk 0:01:55.9]} 22.
Rg1 {[%clk 0:01:20.3]} 22... a6 {[%clk 0:01:47.9]} 23. Rab1 {[%clk 0:01:17.6]}
23... b5 {[%clk 0:01:47.5]} 24. a4 {[%clk 0:01:16.4]} 24... bxa4 {[%clk
0:01:42]} 25. Qxa6 {[%clk 0:01:16.3]} 25... e5 {[%clk 0:01:32.5]} 26. Qxa4
{[%clk 0:00:55.5]} 26... e4 {[%clk 0:01:26.8]} 27. Nd2 {[%clk 0:00:43.6]} 27...
Qf5 {[%clk 0:01:26]} 28. Rb7 {[%clk 0:00:36.3]} 28... Nf6 {[%clk 0:01:13]} 29.
Qd1 {[%clk 0:00:36]} 29... Nh5 {[%clk 0:00:59.6]} 30. c4 {[%clk 0:00:36.2]}
30... Nf4 {[%clk 0:00:57.1]} 31. c5 {[%clk 0:00:26.4]} 31... Nxh3 {[%clk
0:00:49]} 32. cxd6 {[%clk 0:00:23.8]} 32... Nxg1 {[%clk 0:00:41.5]} 33. Kxg1
{[%clk 0:00:15.2]} 33... h5 {[%clk 0:00:38.8]} 34. d7 {[%clk 0:00:13.3]} 34...
h4 {[%clk 0:00:36.8]} 35. Kh2 {[%clk 0:00:11.4]} 35... Kh7 {[%clk 0:00:18.9]}
36. Qe2 {[%clk 0:00:11.3]} 36... h3 {[%clk 0:00:17.9]} 37. g3 {[%clk 0:00:11]}
37... Rg4 {[%clk 0:00:16.3]} 38. Nf1 {[%clk 0:00:10.8]} 38... g5 {[%clk
0:00:12.8]} 39. Rb6 {[%clk 0:00:09.3]} 39... Qxd7 {[%clk 0:00:11.5]} 40. Rd6
{[%clk 0:00:08.1]} 40... Qf5 {[%clk 0:00:10.6]} 41. Rxd5 {[%clk 0:00:07.4]}
41... Qf3 {[%clk 0:00:09.5]} 42. Qxf3 {[%clk 0:00:06.5]} 42... exf3 {[%clk
0:00:09.8]} 43. Kxh3 {[%clk 0:00:06.2]} 43... Re4 {[%clk 0:00:10]} 44. Rxg5
{[%clk 0:00:06]} 44... Rf6 {[%clk 0:00:09.5]} 45. Rg4 {[%clk 0:00:06.3]} 45...
Rh6+ {[%clk 0:00:09.3]} 46. Rh4 {[%clk 0:00:06.8]} 46... Rhxh4+ {[%clk
0:00:09.1]} 47. gxh4 {[%clk 0:00:07.7]} 47... Kg6 {[%clk 0:00:09]} 48. Kg3
{[%clk 0:00:08.1]} 48... Kh5 {[%clk 0:00:08.7]} 49. Kxf3 {[%clk 0:00:08.3]}
49... Rxh4 {[%clk 0:00:08.9]} 50. Ng3+ {[%clk 0:00:08.3]} 50... Kg6 {[%clk
0:00:07.7]} 51. Bf4 {[%clk 0:00:07.1]} 51... Rh8 {[%clk 0:00:07.1]} 52. Ke4
{[%clk 0:00:07.1]} 52... Re8+ {[%clk 0:00:06.6]} 53. Be5 {[%clk 0:00:07.5]}
53... Kg5 {[%clk 0:00:06.3]} 54. f4+ {[%clk 0:00:07.1]} 54... Kg4 {[%clk
0:00:06.5]} 55. Nf5 {[%clk 0:00:07.6]} 55... Rf8 {[%clk 0:00:04]} 56. Nh6+
{[%clk 0:00:06.7]} 56... Kh5 {[%clk 0:00:03.7]} 57. Nf5 {[%clk 0:00:07]} 57...
Kg6 {[%clk 0:00:03.3]} 58. Ne3 {[%clk 0:00:06.8]} 58... Re8 {[%clk 0:00:02.9]}
59. f5+ {[%clk 0:00:06.9]} 59... Kg5 {[%clk 0:00:02.1]} 60. f6 {[%clk 0:00:07]}
60... Kg6 {[%clk 0:00:02]} 61. d5 {[%clk 0:00:05.8]} 61... Kf7 {[%clk 0:00:02]}
62. Kf5 {[%clk 0:00:04.8]} 62... Rh8 {[%clk 0:00:01.6]} 63. Ke4 {[%clk
0:00:04.2]} 63... Rh4+ {[%clk 0:00:01.5]} 64. Bf4 {[%clk 0:00:04.5]} 64... Kxf6
{[%clk 0:00:01.2]} 65. Nc4 {[%clk 0:00:05]} 1-0